bitfinex-derivatives/quotes_SOLF0:USTF0_20250821
["timestamp","ask_amount","ask_price","bid_price","bid_amount"]
[1755756177776,2.2685715,187.56,187.54,2.79]
[1755756179771,2.2685715,187.56,187.49,2.79]
[1755756179978,2.2685715,187.54,187.51,2.79]
[1755756180179,2.2685715,187.54,187.52,2.79]
[1755756180582,358.2,187.63,187.48,2.79]
[1755756180779,2.2685715,187.6,187.51,2.79]
[1755756180975,2.2685715,187.6,187.54,0.03567093]
[1755756181479,2.2685715,187.58,187.54,0.03567093]
[1755756181775,358.2,187.63,187.54,0.03567093]
[1755756181776,2.3985715,187.56,187.54,0.03567093]
[1755756182378,0.13,187.55,187.54,0.03567093]
[1755756182576,2.2685715,187.56,187.54,0.03567093]
[1755756182773,0.13,187.55,187.54,0.03567093]
[1755756182976,0.13,187.54,187.5,2.79]
[1755756183280,2.2685715,187.52,187.5,2.79]
[1755756183678,2.2685715,187.52,187.46,2.79]
[1755756184276,2.2685715,187.54,187.46,2.79]
[1755756184474,0.0394885,187.51,187.46,2.79]
[1755756187274,0.0394885,187.51,187.47,2.79]
[1755756187472,0.0394885,187.51,187.48,2.79]
[1755756189074,0.0394885,187.51,187.49,2.79]
[1755756189976,0.0394885,187.51,187.46,2.79]
[1755756189977,2.3985715,187.5,187.46,2.79]
[1755756190282,2.3985715,187.5,187.4,132.3885715]
[1755756190580,2.3985715,187.5,187.47,2.79]
[1755756191175,2.43824915,187.5,187.47,2.79]
[1755756192277,2.30824915,187.5,187.48,2.79]
[1755756193674,2.43824915,187.5,187.42,5.3355]
[1755756193878,2.43824915,187.5,187.47,2.79]
[1755756194883,2.30824915,187.5,187.48,2.79]
[1755756195787,2.43824915,187.5,187.42,5.3354]
[1755756195986,2.43824915,187.5,187.46,2.79]
[1755756196189,2.43824915,187.5,187.47,2.79]
[1755756197983,2.30824915,187.5,187.48,2.79]
[1755756200486,2.30824915,187.5,187.43,2.79]
[1755756200688,2.2685715,187.48,187.44,2.79]
[1755756200884,2.2685715,187.48,187.45,2.79]
[1755756201085,2.2685715,187.46,187.4,5.336]
[1755756201287,2.2685715,187.46,187.42,2.79]
[1755756201489,2.2685715,187.46,187.44,2.79]
[1755756201680,0.03824721,187.45,187.38,128.76089808]
[1755756201991,2.2685715,187.44,187.4,2.79]
[1755756202186,2.3985715,187.44,187.41,2.79]
[1755756202494,2.2685715,187.44,187.35,2.2685715]
[1755756202788,2.2685715,187.46,187.36,2.79]
[1755756202989,2.2685715,187.46,187.4,5.3359]
[1755756203390,0.03649827,187.45,187.43,2.79]
[1755756203596,0.03649827,187.45,187.36,2.79]
[1755756203787,2.2685715,187.44,187.36,2.79]
[1755756204981,2.2685715,187.44,187.38,5.3365]
[1755756205184,2.2685715,187.44,187.33,133.35728971]
[1755756205394,2.3985715,187.44,187.41,2.79]
[1755756206094,2.30622857,187.44,187.42,2.79]
[1755756208492,2.30622857,187.44,187.43,2.79]
[1755756208888,2.30622857,187.44,187.33,133.35728971]
[1755756208889,2.30622857,187.44,187.4,2.79]
[1755756209191,2.30622857,187.44,187.41,2.79]
[1755756210091,2.30622857,187.44,187.38,5.3365]
[1755756210293,2.30622857,187.44,187.4,2.79]
[1755756210599,2.30622857,187.44,187.41,2.79]
[1755756210795,0.03765707,187.44,187.35,2.2685715]
[1755756210995,0.03765707,187.44,187.43,2.79]
[1755756212396,0.03765707,187.44,187.43,8.1252]
[1755756214798,2.2685715,187.49,187.43,2.79]
[1755756215501,2.2685715,187.49,187.45,5.3346]
[1755756215699,2.2685715,187.49,187.48,2.79]
[1755756215899,2.2685715,187.56,187.48,2.79]
[1755756216096,2.2685715,187.5,187.48,2.79]
[1755756217099,2.2685715,187.5,187.49,2.79]
[1755756217598,2.2685715,187.5,187.48,2.79]
[1755756219297,2.2685715,187.52,187.47,5.37448058]
[1755756219493,2.2685715,187.54,187.48,2.79]
[1755756219898,2.2685715,187.54,187.5,2.79]
[1755756220201,2.4385715,187.58,187.48,2.79]
[1755756220396,2.4385715,187.58,187.52,5.3325]
[1755756220794,2.4385715,187.58,187.54,2.79]
[1755756220999,2.4385715,187.58,187.55,2.79]
[1755756221200,2.4385715,187.61,187.55,2.79]
[1755756221699,2.4385715,187.61,187.55,8.1215]
[1755756222097,2.2685715,187.61,187.57,2.79]
[1755756222303,0.17,187.6,187.57,2.79]
[1755756222502,2.2685715,187.59,187.57,2.79]
[1755756222902,0.17,187.58,187.56,0.03867181]
[1755756223103,2.4385715,187.57,187.56,0.03867181]
[1755756231117,2.2685715,187.57,187.49,2.79]
[1755756231318,0.03449846,187.58,187.53,2.79]
[1755756231815,130.48,187.65,187.57,2.79]
[1755756232213,130.48,187.65,187.57,8.121]
[1755756232408,130.69,187.65,187.57,8.121]
[1755756233313,130.69,187.65,187.59,0.03646402]
[1755756235220,130.69,187.65,187.59,2.82646402]
[1755756237222,0.19,187.63,187.59,0.03646402]
[1755756237423,0.19,187.61,187.59,0.03646402]
[1755756237622,0.19,187.6,187.59,0.03646402]
[1755756238717,2.4585715,187.6,187.59,0.03646402]
[1755756240520,2.2685715,187.6,187.52,2.86]
[1755756240715,132.7485715,187.65,187.52,2.86]
[1755756240716,0.19,187.56,187.52,2.86]
[1755756240922,0.19,187.55,187.45,2.86]
[1755756241121,0.19,187.55,187.48,8.1936]
[1755756241122,2.4585715,187.55,187.48,8.1936]
[1755756241826,2.4585715,187.55,187.49,5.3335]
[1755756242028,0.04037892,187.53,187.49,5.3335]
[1755756242226,0.04037892,187.53,187.51,2.86]
[1755756242525,0.04037892,187.53,187.47,2.86]
[1755756242526,2.30895042,187.53,187.47,2.86]
[1755756242730,0.04037892,187.53,187.49,2.86]
[1755756243023,0.04037892,187.53,187.46,2.86]
[1755756243622,0.04037892,187.53,187.47,5.3339]
[1755756243819,0.04037892,187.53,187.47,2.86]
[1755756244027,0.19,187.5,187.44,2.86]
[1755756244821,0.038725,187.49,187.45,2.86]
[1755756245027,0.038725,187.49,187.42,2.86]
[1755756246632,0.038725,187.49,187.48,2.86]
[1755756247726,0.038725,187.49,187.48,8.1938]
[1755756249236,0.038725,187.49,187.48,2.86]
[1755756254437,0.038725,187.49,187.48,8.1938]
[1755756259546,358.61,187.62,187.48,2.86]
[1755756259745,2.2685715,187.57,187.48,2.86]
[1755756259947,0.23,187.56,187.48,2.86]
[1755756261049,2.2685715,187.54,187.48,2.86]
[1755756261247,0.23,187.51,187.48,2.86]
[1755756261837,2.2685715,187.54,187.49,2.86]
[1755756262040,0.23,187.52,187.49,2.86]
[1755756263048,2.2685715,187.54,187.49,2.86]
[1755756263250,0.23,187.51,187.49,2.86]
[1755756263453,0.23,187.51,187.48,0.03439026]
[1755756263642,0.23,187.51,187.48,2.89439026]
[1755756264454,0.23,187.53,187.48,0.03439026]
[1755756264660,2.2685715,187.56,187.48,0.03439026]
[1755756264661,2.4985715,187.49,187.48,0.03439026]
[1755756264963,2.4985715,187.49,187.42,2.86]
[1755756265141,2.4985715,187.49,187.47,0.03521562]
[1755756269954,0.23,187.48,187.47,0.03521562]
[1755756278749,0.23,187.48,187.4,5.336]
[1755756278750,0.23,187.48,187.4,2.92]
[1755756278949,0.23,187.44,187.4,2.92]
[1755756279252,0.23,187.43,187.4,2.92]
[1755756280758,2.2685715,187.45,187.41,2.92]
[1755756280960,2.4985715,187.45,187.39,2.92]
[1755756285358,2.4985715,187.42,187.36,2.92]
[1755756286556,2.4985715,187.42,187.34,5.3377]
[1755756286557,2.2685715,187.42,187.34,5.3377]
[1755756286761,2.4985715,187.42,187.34,8.2577]
[1755756288565,2.4985715,187.42,187.36,2.92]
[1755756290763,2.2685715,187.4,187.32,4.45636619]
[1755756290963,2.2685715,187.38,187.33,2.92]
[1755756291163,2.5085715,187.38,187.34,2.92]
[1755756291366,2.5085715,187.38,187.32,2.92]
[1755756292369,0.24,187.38,187.32,2.92]
[1755756293663,0.24,187.38,187.32,8.2583]
[1755756293968,0.24,187.38,187.32,2.92]
[1755756294361,0.24,187.36,187.32,2.92]
[1755756294958,2.2685715,187.37,187.32,2.92]
[1755756295158,2.2685715,187.35,187.28,2.92]
[1755756295568,2.2685715,187.3,187.25,2.92]
[1755756295767,2.2685715,187.3,187.22,139.1127062]
[1755756295768,2.2685715,187.3,187.23,2.92]
[1755756298169,2.2685715,187.3,187.23,8.2606]
[1755756298369,2.2685715,187.3,187.24,3.03]
[1755756300376,2.2685715,187.3,187.25,3.03]
[1755756300672,2.2685715,187.3,187.26,3.03]
[1755756300868,2.2685715,187.32,187.27,5.3397]
[1755756301075,2.2685715,187.34,187.28,3.03]
[1755756301263,2.5085715,187.3,187.23,3.03]
[1755756301468,2.2685715,187.28,187.24,3.03]
[1755756301668,2.2685715,187.3,187.23,3.03]
[1755756301871,2.2685715,187.32,187.23,3.03]
[1755756302371,2.5085715,187.33,187.23,3.03]
[1755756302568,2.2685715,187.33,187.24,3.03]
[1755756302771,2.5085715,187.33,187.24,3.03]
[1755756302964,2.2685715,187.31,187.24,3.03]
[1755756303370,2.2685715,187.31,187.24,8.3706]
[1755756303868,2.2685715,187.31,187.24,3.03]
[1755756304074,2.2685715,187.29,187.25,3.03]
[1755756304271,2.2685715,187.27,187.22,133.72707621]
[1755756304574,2.5085715,187.27,187.24,3.03]
[1755756304773,2.2685715,187.27,187.24,3.03]
[1755756305170,2.5085715,187.27,187.24,3.03]
[1755756305973,2.2685715,187.27,187.25,3.03]
[1755756306169,2.5085715,187.3,187.22,133.72707621]
[1755756306372,2.2685715,187.3,187.23,3.03]
[1755756306572,2.2685715,187.32,187.25,5.3401]
[1755756306775,2.2685715,187.32,187.26,3.03]
[1755756307372,0.24,187.29,187.23,3.03]
[1755756308780,0.24,187.27,187.23,3.03]
[1755756311280,2.2685715,187.28,187.18,3.03]
[1755756311576,2.2685715,187.28,187.22,5.3412]
[1755756311782,2.5085715,187.28,187.17,3.19810833]
[1755756311981,2.2685715,187.28,187.25,3.03]
[1755756313791,2.2685715,187.28,187.17,3.19810833]
[1755756313792,2.2685715,187.28,187.2,3.03]
[1755756314096,2.2685715,187.26,187.2,3.03]
[1755756315999,0.24,187.23,187.15,130.78]
[1755756316297,2.2685715,187.22,187.16,3.03]
[1755756316484,2.2685715,187.2,187.16,3.03]
[1755756316688,2.2685715,187.2,187.11,3.03]
[1755756317186,2.2685715,187.18,187.11,3.03]
[1755756317385,2.2685715,187.16,187.11,3.03]
[1755756317588,0.24,187.19,187.07,3.03]
[1755756317788,2.2685715,187.18,187.09,3.03]
[1755756317986,2.2685715,187.18,187.1,5.3444]
[1755756318293,2.2685715,187.2,187.11,3.03]
[1755756318493,0.24,187.23,187.16,5.3429]
[1755756318494,2.2685715,187.22,187.16,5.3429]
[1755756318793,0.24,187.23,187.17,3.03]
[1755756319601,2.2685715,187.24,187.17,3.03]
[1755756319794,2.5085715,187.24,187.17,3.03]
[1755756320297,2.2685715,187.24,187.17,8.3726]
[1755756320693,2.2685715,187.24,187.17,3.03]
[1755756320999,2.2685715,187.2,187.17,3.03]
[1755756321791,0.24,187.21,187.17,3.03]
[1755756322098,2.5085715,187.21,187.17,3.03]
[1755756323493,2.2685715,187.21,187.19,3.03]
[1755756323699,0.25,187.25,187.19,3.03]
[1755756323901,2.2685715,187.24,187.2,3.03]
[1755756324100,2.2685715,187.22,187.18,3.03]
[1755756324304,2.2685715,187.22,187.12,3.03]
[1755756324498,2.2685715,187.22,187.15,5.3432]
[1755756324702,2.2685715,187.22,187.16,3.03]
[1755756327097,2.2685715,187.2,187.16,3.03]
[1755756327306,2.5285715,187.2,187.16,3.03]
[1755756327599,2.5285715,187.2,187.12,2.74]
[1755756327600,2.2685715,187.18,187.12,2.74]
[1755756328703,2.2685715,187.18,187.06,5.38642472]
[1755756328704,2.5285715,187.16,187.06,0.93005853]
[1755756328998,2.2685715,187.16,187.11,5.3442]
[1755756329197,0.26,187.19,187.11,5.3442]
[1755756329198,2.2685715,187.18,187.11,5.3442]
[1755756329508,2.2685715,187.18,187.12,2.74]
[1755756330599,2.2685715,187.18,187.12,8.084]
[1755756330995,2.2685715,187.18,187.12,2.74]
[1755756333207,2.2685715,187.16,187.09,5.3447]
[1755756334309,2.2685715,187.16,187.08,8.0851]
[1755756334508,2.2685715,187.16,187.08,2.74]
[1755756334702,2.2685715,187.2,187.06,0.93005853]
[1755756334703,2.2685715,187.12,187.06,0.93005853]
[1755756334906,2.2685715,187.12,187.05,2.74]
[1755756335602,2.2685715,187.12,187.05,8.086]
[1755756335806,2.2685715,187.16,187.06,2.2685715]
[1755756336005,2.2685715,187.16,187.07,2.74]
[1755756336205,2.2685715,187.16,187.1,2.74]
[1755756337805,2.5285715,187.14,187.1,2.74]
[1755756338302,2.2685715,187.14,187.09,2.74]
[1755756338607,2.2685715,187.16,187.09,2.74]
[1755756338809,0.26,187.15,187.06,2.74]
[1755756339404,0.26,187.15,187.08,2.74]
[1755756340001,0.26,187.15,187.09,5.3449]
[1755756341314,0.26,187.15,187.05,2.2685715]
[1755756341315,0.26,187.15,187.11,2.74]
[1755756341617,2.2685715,187.16,187.13,2.74]
[1755756341915,2.5285715,187.16,187.1,2.74]
[1755756342414,2.5285715,187.16,187.1,8.0846]
[1755756342604,2.5285715,187.16,187.1,2.74]
[1755756343813,2.5285715,187.16,187.06,2.74]
[1755756344317,2.2685715,187.12,187.06,2.74]
[1755756345810,2.2685715,187.1,187.03,2.74]
[1755756346610,2.2685715,187.08,187.03,2.74]
[1755756346811,2.2685715,187.06,186.99,2.74]
[1755756347408,2.2685715,187.06,186.99,8.0877]
[1755756348312,2.2685715,187.02,186.94,2.74]
[1755756348716,2.2685715,187.02,186.97,2.74]
[1755756348913,2.2685715,187.02,186.99,2.74]
[1755756349112,2.2685715,187.02,186.93,0.93070525]
[1755756349318,2.2685715,187.0,186.95,2.74]
[1755756349515,2.5285715,187.0,186.92,2.74]
[1755756349714,2.5285715,187.0,186.92,8.0896]
[1755756349919,2.5285715,187.0,186.92,2.74]
[1755756350110,2.5285715,187.0,186.92,8.0897]
[1755756350316,2.5285715,187.0,186.92,2.74]
[1755756350815,2.5285715,187.0,186.92,8.0897]
[1755756351615,2.5285715,187.0,186.92,2.74]
[1755756352722,2.2685715,186.98,186.92,2.74]
[1755756352918,0.26,187.0,186.92,2.74]
[1755756353121,2.2685715,186.99,186.92,2.74]
[1755756353526,2.2685715,186.99,186.92,8.0896]
[1755756354233,2.2685715,186.99,186.92,2.74]
[1755756354619,2.2685715,186.99,186.92,8.0896]
[1755756355215,2.2685715,186.99,186.92,2.74]
[1755756355727,2.2685715,186.99,186.92,8.0896]
[1755756356129,2.2685715,186.99,186.92,2.74]
[1755756356429,2.5185715,186.97,186.92,2.74]
[1755756356630,2.2685715,186.95,186.88,2.91]
[1755756356832,2.2685715,186.95,186.89,5.3504]
[1755756357133,2.2685715,186.95,186.88,2.91]
[1755756357630,2.2685715,186.93,186.88,2.91]
[1755756357821,2.5185715,186.93,186.88,2.91]
[1755756358020,2.5185715,186.93,186.89,2.91]
[1755756358530,2.5185715,186.93,186.9,2.91]
[1755756359229,0.25,186.93,186.9,2.91]
[1755756359427,2.2685715,186.93,186.86,5.3514]
[1755756359626,2.2685715,186.93,186.85,2.91]
[1755756360130,2.2685715,186.93,186.82,3.19971255]
[1755756360131,0.25,187.05,186.88,2.91]
[1755756360323,0.25,187.0,186.9,2.91]
[1755756360526,2.2685715,186.99,186.92,5.3496]
[1755756360726,2.2685715,186.99,186.92,2.91]
[1755756360922,2.2685715,187.02,186.92,2.91]
[1755756361122,2.5185715,186.97,186.92,8.2596]
[1755756361331,2.5185715,186.97,186.92,2.91]
[1755756361742,2.5185715,186.95,186.88,2.91]
[1755756362127,2.5185715,186.95,186.89,5.3504]
[1755756363028,2.2685715,186.93,186.88,2.91]
[1755756363228,0.25,186.92,186.88,2.91]
[1755756363433,2.2685715,186.93,186.87,2.91]
[1755756363738,2.5185715,186.95,186.87,2.91]
[1755756364537,2.5185715,186.95,186.89,5.3504]
[1755756364734,2.2685715,186.91,186.82,0.93114105]
[1755756364935,2.5185715,186.91,186.85,2.91]
[1755756365131,2.2685715,186.91,186.85,2.91]
[1755756365333,2.2685715,186.93,186.85,2.91]
[1755756365534,2.2685715,186.95,186.89,2.91]
[1755756365733,204.6640444,187.0,186.89,2.91]
[1755756365930,206.9326159,187.0,186.9,2.91]
[1755756366137,2.2685715,186.98,186.9,2.91]
[1755756366538,204.6640444,187.0,186.9,2.91]
[1755756366539,2.2685715,186.96,186.9,2.91]
[1755756366928,204.9140444,187.0,186.91,5.3499]
[1755756367129,2.2685715,186.97,186.9,2.91]
[1755756367935,0.03401951,186.95,186.9,2.91]
[1755756368239,0.03401951,186.95,186.87,2.91]
[1755756368633,0.03401951,186.95,186.89,2.91]
[1755756369033,2.2685715,186.99,186.89,2.91]
[1755756369538,2.2685715,186.99,186.88,2.2685715]
[1755756369539,2.2685715,186.99,186.92,8.2598]
[1755756369738,2.2685715,186.99,186.92,2.91]
[1755756370037,2.2685715,186.99,186.92,8.2598]
[1755756370239,2.2685715,186.99,186.92,2.91]
[1755756371035,0.25,186.96,186.92,2.91]
[1755756371339,0.25,186.95,186.89,2.91]
[1755756371535,2.2685715,186.93,186.89,2.91]
[1755756371736,2.5185715,186.93,186.82,3.19971255]
[1755756371936,0.25,186.9,186.86,2.91]
[1755756373340,2.5185715,186.91,186.82,2.91]
[1755756373845,2.5185715,186.91,186.82,8.2624]
[1755756374237,2.5185715,186.91,186.82,2.91]
[1755756374437,2.2685715,186.89,186.82,8.2626]
[1755756375039,2.2685715,186.89,186.83,5.3522]
[1755756375445,2.2685715,186.89,186.82,2.91]
[1755756375647,2.2685715,186.89,186.84,5.352]
[1755756375951,2.2685715,186.89,186.85,2.91]
[1755756376140,0.25,186.89,186.85,2.91]
[1755756376337,2.5185715,186.9,186.85,2.91]
[1755756376541,2.5185715,186.9,186.86,2.91]
[1755756376745,2.5185715,186.9,186.82,2.91]
[1755756377047,2.5185715,186.9,186.84,5.3519]
[1755756377848,2.5185715,186.9,186.83,5.3522]
[1755756378251,0.25,186.9,186.8,131.78]
[1755756378546,0.25,186.9,186.85,2.91]
[1755756378754,0.25,186.9,186.86,2.91]
[1755756379641,2.2685715,186.89,186.82,2.91]
[1755756380355,2.2685715,186.94,186.84,2.91]
[1755756380746,2.2685715,186.96,186.86,2.91]
[1755756380956,2.2685715,186.96,186.87,2.91]
[1755756382458,2.2685715,186.96,186.92,2.91]
[1755756382753,2.2685715,186.96,186.86,2.91]
[1755756383054,2.2685715,186.96,186.93,2.91]
[1755756384758,2.2685715,186.96,186.91,5.3499]
[1755756384759,2.2685715,186.98,186.95,2.91]
[1755756385253,2.2685715,186.98,186.96,2.91]
[1755756386053,2.2685715,186.98,186.93,5.3493]
[1755756386358,2.2685715,186.95,186.94,2.97]
[1755756386756,2.2685715,186.95,186.94,8.3192]
[1755756386957,2.2685715,186.95,186.94,2.97]
[1755756387160,2.2685715,186.96,186.94,2.97]
[1755756387453,2.2685715,186.96,186.86,8.26299965]
[1755756387454,0.25,187.04,186.9,2.97]
[1755756387654,2.2685715,186.99,186.92,2.97]
[1755756388355,2.2685715,186.99,186.92,4.45636619]
[1755756388659,2.2685715,186.99,186.94,2.97]
[1755756389650,2.2685715,187.01,186.98,5.3481]
[1755756390060,2.2685715,186.99,186.98,5.3481]
[1755756390263,2.2685715,186.99,186.97,8.3183]
[1755756390461,2.2685715,186.99,186.98,2.97]
[1755756390756,2.2685715,186.99,186.9,7.42636619]
[1755756390955,2.2685715,186.95,186.91,2.97]
[1755756391163,2.2685715,186.95,186.93,2.97]
[1755756392956,2.2685715,186.95,186.91,5.3499]
[1755756393159,2.2685715,186.95,186.89,2.97]
[1755756393360,2.2685715,186.95,186.91,8.32]
[1755756393562,2.2685715,186.95,186.92,2.97]
[1755756394255,2.5185715,186.95,186.86,4.45636619]
[1755756394458,2.2685715,186.93,186.88,2.97]
[1755756394662,2.5185715,186.93,186.88,8.3207]
[1755756394961,2.5185715,186.93,186.89,2.97]
[1755756395858,2.2685715,186.93,186.84,4.45636619]
[1755756396067,2.2685715,186.96,186.88,4.45636619]
[1755756396258,2.2685715,186.96,186.89,2.97]
[1755756396861,0.25,186.99,186.89,2.97]
[1755756397067,2.2685715,186.98,186.94,2.97]
[1755756397464,2.2685715,186.98,186.88,6.72493769]
[1755756397667,2.2685715,186.98,186.91,2.97]
[1755756398169,2.2685715,186.98,186.93,5.3493]
[1755756398370,0.25,186.97,186.91,2.97]
[1755756398563,3.99040889,186.97,186.87,4.45636619]
[1755756398773,3.99040889,186.97,186.88,2.97]
[1755756399073,3.99040889,186.97,186.89,5.3504]
[1755756399465,3.99040889,186.97,186.9,5.3503]
[1755756399966,3.99040889,186.97,186.88,7.42636619]
[1755756400470,3.99040889,186.97,186.91,5.35]
[1755756402975,3.99040889,186.97,186.88,2.97]
[1755756403173,3.74040889,186.94,186.88,2.97]
[1755756403371,0.25,186.92,186.88,2.97]
[1755756403975,3.74040889,186.94,186.89,2.97]
[1755756404282,3.99040889,186.94,186.89,2.97]
[1755756404578,0.25,186.93,186.85,7.42636619]
[1755756404763,3.74040889,186.91,186.85,8.3216]
[1755756404966,3.74040889,186.91,186.85,2.97]
[1755756407483,0.25,186.93,186.85,2.97]
[1755756408175,0.25,186.93,186.87,5.3511]
[1755756409181,0.25,186.93,186.85,8.3215]
[1755756409377,0.25,186.9,186.82,2.97]
[1755756411487,0.25,186.9,186.84,5.3518]
[1755756411688,0.25,186.9,186.82,2.97]
[1755756412181,0.25,186.9,186.83,5.3523]
[1755756412888,0.25,186.9,186.84,5.352]
[1755756414482,0.25,186.9,186.82,2.97]
[1755756414982,0.25,186.9,186.83,5.3523]
[1755756416189,3.74040889,186.88,186.82,2.97]
[1755756417887,3.74040889,186.88,186.82,8.3225]
[1755756418889,3.74040889,186.88,186.82,2.97]
[1755756419392,3.74040889,186.88,186.82,8.3225]
[1755756419587,0.25,186.9,186.82,5.3525]
[1755756419792,3.74040889,186.9,186.83,2.78]
[1755756420286,2.29754878,186.89,186.83,2.78]
[1755756420795,2.29754878,186.91,186.82,2.78]
[1755756421286,0.25,186.95,186.86,5.3513]
[1755756421495,2.29754878,186.9,186.87,2.78]
[1755756421792,2.29754878,186.92,186.89,2.78]
[1755756421992,2.54754878,186.92,186.86,2.78]
[1755756422393,2.54754878,186.92,186.88,2.78]
[1755756422587,2.54754878,186.92,186.89,2.78]
[1755756422794,2.29754878,186.92,186.91,2.78]
[1755756422982,2.29754878,186.94,186.85,2.78]
[1755756423290,2.29754878,186.92,186.85,2.78]
[1755756423490,2.29754878,186.94,186.91,2.78]
[1755756423990,2.54754878,186.94,186.91,2.78]
[1755756424891,2.54754878,186.94,186.84,2.78]
[1755756425082,2.29754878,186.94,186.84,5.07754878]
[1755756425284,2.29754878,186.94,186.85,2.78]
[1755756425486,2.29754878,186.94,186.9,2.78]
[1755756425692,2.29754878,186.94,186.91,2.78]
[1755756426191,2.29754878,186.94,186.85,2.78]
[1755756426192,2.54754878,186.94,186.85,2.78]
[1755756426396,2.29754878,186.92,186.85,2.78]
[1755756426595,2.29754878,186.9,186.85,2.78]
[1755756426789,2.54754878,186.9,186.86,2.78]
[1755756427491,2.54754878,186.9,186.87,2.78]
[1755756428289,2.29754878,186.9,186.87,2.78]
[1755756429400,2.54754878,186.9,186.84,2.78]
[1755756430693,2.54754878,186.9,186.84,8.132]
[1755756430997,2.54754878,186.9,186.84,2.78]
[1755756431996,2.29754878,186.93,186.86,2.78]
[1755756432603,2.29754878,186.95,186.89,8.1305]
[1755756432802,2.29754878,186.95,186.89,2.78]
[1755756432998,2.29754878,186.95,186.89,8.1306]
[1755756433206,2.29754878,186.95,186.89,2.78]
[1755756433502,2.29754878,186.95,186.89,8.1305]
[1755756433898,2.29754878,186.95,186.89,2.78]
[1755756434099,2.29754878,186.95,186.89,8.1304]
[1755756434596,2.29754878,186.95,186.89,2.78]
[1755756434802,2.29754878,186.95,186.9,5.3503]
[1755756434997,2.29754878,186.95,186.92,2.78]
[1755756435502,2.54754878,186.95,186.92,2.78]
[1755756436102,2.54754878,186.95,186.89,5.3505]
[1755756436401,2.54754878,186.95,186.89,8.1305]
[1755756436603,2.54754878,186.95,186.9,5.3503]
[1755756436794,2.54754878,186.95,186.91,2.78]
[1755756439407,2.29754878,186.94,186.91,2.78]
[1755756443602,2.54754878,187.02,186.92,2.78]
[1755756443802,2.54754878,187.02,186.93,7.23636619]
[1755756444001,2.54754878,187.02,186.94,10.21888913]
[1755756444202,2.54754878,187.02,186.95,4.86988913]
[1755756444505,2.54754878,187.02,186.96,4.86988913]
[1755756444705,0.25,187.01,186.97,4.86988913]
[1755756444901,2.54754878,186.99,186.98,4.86988913]
[1755756445099,2.54754878,186.99,186.89,4.45636619]
[1755756445303,2.29754878,186.96,186.9,2.78]
[1755756447104,0.25,186.95,186.91,7.80339131]
[1755756447300,0.25,186.95,186.92,4.87339131]
[1755756447506,0.25,186.95,186.93,4.87339131]
[1755756447808,0.25,186.95,186.94,4.87339131]
[1755756451509,0.25,186.94,186.88,2.93]
[1755756451703,0.25,186.94,186.81,9.23872251]
[1755756451704,2.54754878,186.92,186.89,4.87588063]
[1755756451911,2.54754878,186.92,186.87,2.93]
[1755756451912,2.54754878,186.92,186.9,4.87588063]
[1755756452211,2.54754878,186.92,186.91,4.87588063]
[1755756453914,2.29754878,186.92,186.91,4.87588063]
[1755756460921,2.29754878,186.92,186.88,2.93]
[1755756461122,2.29754878,186.92,186.89,4.90254326]
[1755756461319,2.29754878,186.92,186.9,7.83254326]
[1755756461524,2.54754878,186.92,186.91,4.90254326]
[1755756464220,2.29754878,186.92,186.91,4.90254326]
[1755756464427,15.0,186.92,186.91,7.83254326]
[1755756467228,15.0,186.92,186.91,7.83407149]
[1755756467928,17.29754878,186.92,186.91,7.83407149]
[1755756468129,15.0,186.92,186.91,7.83407149]
[1755756469229,11.96,186.92,186.91,7.83407149]
[1755756469732,11.96,186.92,186.91,13.18417149]